Cogmind - Beta 15 @@@ ROGUE MODE // 2025.06.27 @ 15:45:46 Player: ChemSlug Result: Destroyed by S-10 Pest with Light Assault Rifle Performance ------------- Evolutions (0) 0 Regions Visited (1) 200 Robots Destroyed (8) 40 Value Destroyed (195) 195 Prototype IDs (0) 0 Alien Tech Used (0) 0 Bonus (0) 0 TOTAL SCORE: 435 Bonus ------- None Cogmind --------- Core Integrity 0/250 Matter 263/300 Energy 84/250 System Corruption 0% Temperature Cool (0) Movement Flying (117) Ox1 Location -10/Materials Parts ------- > --- POWER (1) -------- Ion Engine > --- PROPULSION (2) --- Flight Unit Flight Unit > --- UTILITY (2) ------ Small Storage Unit Signal Interpreter > --- WEAPON (2) ------- (None) > --- INVENTORY (8) ---- Light Ion Engine Flight Unit Flight Unit Terrain Scanner Terrain Scan Processor Light Assault Rifle Peak State ------------ > --- POWER ------------ Light Nuclear Core > --- PROPULSION ------- Light Treads Light Treads > --- UTILITY ---------- Small Storage Unit > --- WEAPON ----------- Assault Rifle Light Assault Rifle > --- INVENTORY -------- Ion Engine Light Ion Engine Flight Unit [Rating: 8] Favorites ----------- Power Ion Engine Engine Ion Engine Power Core Light Nuclear Core Propulsion Light Treads Treads Light Treads Flight Unit Flight Unit Utility Small Storage Unit Device Structural Scanner Storage Small Storage Unit Processor Signal Interpreter Weapon Light Assault Rifle Ballistic Gun Light Assault Rifle Build | -11 -10 ------- Run | Yrd Mat Slots Evolved . | . . Power . | . . Propulsion . | . . Utility . | . . Weapon . | . . Parts Attached 12 | 2 10 Power 2 | 1 1 Engine 1 | 1 . Core 1 | . 1 Reactor . | . . Propulsion 5 | . 5 Treads 2 | . 2 Leg . | . . Wheel . | . . Hover . | . . Flight 3 | . 3 Utility 3 | . 3 Device 1 | . 1 Storage 1 | . 1 Processor 1 | . 1 Hackware . | . . Protection . | . . Artifact . | . . Weapon 2 | 1 1 Energy Gun . | . . Energy Cannon . | . . Ballistic Gun 2 | 1 1 Ballistic Cannon . | . . Launcher . | . . Special Weapon . | . . Impact Weapon . | . . Slashing Weapon . | . . Piercing Weapon . | . . Special Melee Weapon . | . . Unidentified Prototypes . | . . Parts Lost 7 | . 7 Power 1 | . 1 Propulsion 3 | . 3 Utility 1 | . 1 Weapon 2 | . 2 Highest Loss Streak 5 | . 5 To Critical Strikes . | . . Average Backups 4 | 3 4 Power 1 | . 1 Propulsion 2 | 1 2 Utility . | . . Weapon . | . . Tool/Special . | . . Unused Backups 6 | . 6 Power 1 | . 1 Propulsion 2 | . 2 Utility 2 | . 2 Weapon 1 | . 1 Tool/Special . | . . Average Slot Usage (%) 68 | . 68 Engine 4 | . 4 Core 3 | . 3 Treads 18 | . 18 Flight 1 | . 1 Device 3 | . 3 Storage 13 | . 13 Ballistic Gun 23 | . 23 Peak Build Rating 8 | 2 8 Average Rating 5 | 1 5 On Entrance 1 | . 2 Naked Turns . | . . Heaviest Build 13 | 6 13 Greatest Support 40 | 3 40 Greatest Overweight (x) 2 | 1 2 Average Overweight (x) . | . . Largest Inventory Capacity 8 | 5 8 Average Capacity 7 | 5 7 Most Carried 8 | 5 8 Average Carried 4 | 3 5 Final Capacity 8 | 5 8 Final Carried 6 | 5 6 Class Distribution -------------------- 100% | Mutant Dominant Class ---------------- Mutant | -10/Materials Resources | -11 -10 ----------- Run | Yrd Mat Matter Collected 376 | 220 156 Remotely . | . . Salvage Created 266 | . 266 Parts 20 | . 20 Haulers Intercepted . | . . Recyclers Shooed . | . . Parts Field Recycled . | . . Retrieved Matter . | . . Parts Self-Destructed . | . . Prevented . | . . Kills | -11 -10 ------- Run | Yrd Mat Combat Hostiles Destroyed 7 | . 7 Guns 7 | . 7 Classes Destroyed 3 | . 3 Watcher 1 | . 1 Swarmer 3 | . 3 Grunt 4 | . 4 Best Kill Streak 3 | . 3 Combat Bots Only 3 | . 3 Max Kills in Single Turn 2 | . 2 Gunslinging 1 | . 1 Exploded . | . . Melee . | . . Uniques/NPCs Destroyed . | . . Combat | -11 -10 -------- Run | Yrd Mat Hostile Shots Fired 111 | . 111 Missed 25 | . 25 Hits 86 | . 86 Projectile 86 | . 86 Damage Taken 852 | . 852 Core 256 | . 256 Absorbed by Shields . | . . Core Remaining (%) 100 | 100 . Volleys Fired 31 | . 31 Largest 2 | . 2 Hottest 40 | . 40 Shots Fired 53 | . 53 Gun 53 | . 53 Cannon . | . . Launcher . | . . Special . | . . Kinetic 53 | . 53 Thermal . | . . Explosive . | . . Electromagnetic . | . . Robot Hit Streak 10 | . 10 Robot Miss Streak 4 | . 4 Penetration Max . | . . Secondary Targets 2 | . 2 Max Gunslinging Chain 1 | . 1 Shots Hit Robots 32 | . 32 Core Hits 14 | . 14 Critical Kills . | . . Critical Parts Destroyed 1 | . 1 Critical Strikes 1 | . 1 Destroy 1 | . 1 Melee Attacks . | . . Impact . | . . Slashing . | . . Piercing . | . . Sneak Attacks . | . . Combat Hostiles . | . . Follow-up Attacks . | . . Damage Inflicted 373 | . 373 Guns 370 | . 370 Cannons . | . . Explosions . | . . Melee . | . . Ramming 3 | . 3 Kinetic 370 | . 370 Thermal . | . . Explosive . | . . Electromagnetic . | . . Impact . | . . Slashing . | . . Piercing . | . . Highest Corruption . | . . Average Corruption . | . . Corruption Purged . | . . Corruption Blocked . | . . Overload Shots . | . . Overflow Damage . | . . Projectiles . | . . Explosions . | . . Melee . | . . Knockbacks . | . . Impact . | . . Kinetic . | . . Secondary . | . . Self-Inflicted Damage . | . . Shots . | . . Rammed 1 | . 1 Targets Rammed 1 | . 1 Kicked . | . . Crushed . | . . Highest Temperature 31 | . 31 Average Temperature 9 | . 9 Received Heat Transfer 240 | . 240 Siege Activations . | . . Martial Activations . | . . Shielding Activations . | . . Robots Disrupted . | . . Combat Hostiles . | . . Robots Corrupted . | . . Combat Hostiles . | . . Parts Fried . | . . Impact Corruptions . | . . Robots Melted . | . . Combat Hostiles . | . . Parts Melted . | . . Heat Transferred . | . . Parts Sabotaged . | . . Parts Stolen . | . . Parts Stripped . | . . Power Chain Reactions . | . . Alert | -11 -10 ------- Run | Yrd Mat Maximum Alert Level . | . . Low Security (%) 100 | 100 100 Level 1 . | . . Level 2 . | . . Level 3 . | . . Level 4 . | . . Level 5 . | . . High Security . | . . Max Security . | . . Peak Influence 50 | . 50 Initial . | . . Average 12 | . 13 Influence Increases 177 | . 177 Destroy 0b10 Robot/C 140 | . 140 Destroy 0b10 Robot/NC 5 | . 5 Destroy Leader 32 | . 32 Influence Decreases 177 | . 177 Time Decay 158 | . 158 Lost Part 19 | . 19 Squads Dispatched 1 | . 1 Investigation . | . . Extermination . | . . Reinforcement 1 | . 1 Assault . | . . Garrison . | . . Intercept . | . . Searches Triggered . | . . Construction Impeded . | . . Haulers Reinforced . | . . Active Scanning Responses . | . . Cargo Convoy Interrupts . | . . Stealth | -11 -10 --------- Run | Yrd Mat Distress Signals 3 | . 3 Communications Jammed . | . . Distress Signals . | . . Times Spotted 15 | . 15 Peak Tracking Total 6 | . 6 Tactical Retreats . | . . Traps | -11 -10 ------- Run | Yrd Mat Traps Triggered 1 | . 1 Indirectly . | . . Trap Hack Attempts . | . . Triggered . | . . Disarmed . | . . Reprogrammed . | . . Reused . | . . Traps Extracted . | . . Installed . | . . Triggered . | . . Machines | -11 -10 ---------- Run | Yrd Mat Machines Disabled . | . . Max in Single Turn . | . . Machines Repaired . | . . Machines Dismantled . | . . Machines Sabotaged . | . . Overloaded Fab Kills . | . . Hacking | -11 -10 --------- Run | Yrd Mat Machines Accessed . | . . Terminals . | . . Fabricators . | . . Repair Stations . | . . Recycling Units . | . . Scanalyzers . | . . Garrison Access . | . . Total Hacks . | . . Successful . | . . Failed . | . . Catastrophic . | . . Database Lockouts . | . . Manual . | . . Terminals . | . . Fabricators . | . . Repair Stations . | . . Recycling Units . | . . Scanalyzers . | . . Garrison Access . | . . Terminal Hacks . | . . Fabricator Hacks . | . . Repair Station Hacks . | . . Recycling Unit Hacks . | . . Scanalyzer . | . . Garrison Access Hacks . | . . Unauthorized Hacks . | . . Terminals . | . . Fabricators . | . . Repair Stations . | . . Recycling Units . | . . Scanalyzers . | . . Garrison Access . | . . Data Cores Recovered . | . . Used . | . . Hacking Detections . | . . Full Trace Events . | . . Feedback Events . | . . Feedback Blocked . | . . Robot Schematics Acquired . | . . Robots Built . | . . Authchips . | . . Time . | . . Total Robot Build Rating . | . . Part Schematics Acquired . | . . Parts Built . | . . Authchips . | . . Time . | . . Total Part Build Rating . | . . Parts Repaired . | . . Time . | . . Parts Recycled . | . . Recycled Matter . | . . Retrieved Matter . | . . Retrieved Components . | . . Parts Scanalyzed . | . . Part Schematics Acquired . | . . Parts Damaged . | . . Bothacking | -11 -10 ------------ Run | Yrd Mat Used RIF Installer . | . . Robots Hacked . | . . Non-combat . | . . Combat . | . . Robot Hacks Applied . | . . Relay Couplers Released . | . . Fabnet Peak Effective % . | . . Robots Rewired . | . . Allies Hacked . | . . Hacks Repelled . | . . Allies | -11 -10 -------- Run | Yrd Mat Total Allies . | . . Largest Group . | . . Highest-Rated Group . | . . Highest-Rated Ally . | . . Total Orders . | . . Ally Attacks . | . . Total Damage . | . . Kills . | . . Allies Corrupted . | . . Allies Melted . | . . Intel | -11 -10 ------- Run | Yrd Mat Active Infowar (turns) 150 | . 150 Structural 150 | . 150 Robot Analysis Total . | . . Derelict Logs Recovered . | . . Drone Launches . | . . Drone Recoveries . | . . Exploration | -11 -10 ------------- Run | Yrd Mat Turns Passed 711 | 37 674 Spaces Moved 437 | 40 397 Core 53 | 40 13 Treads 331 | . 331 Legs . | . . Wheels . | . . Hover . | . . Flight 53 | . 53 Fastest Speed 37 | 50 37 Average Speed 136 | 73 143 Slowest Speed 160 | 100 160 Overloaded Moves . | . . Propulsion Burnouts . | . . Robots Hopped . | . . Potential Cave-ins . | . . Cave-ins Triggered . | . . Exploration Rate (%) 25 | 3 48 Regions Visited 1 Branch Regions . Pre-discovered Areas . | . . Known Exits Taken . | . . Unknown Exits Taken 1 | 1 . Scrap Searched . | . . Spaces Dug . | . . Terrain Destroyed . | . . Melee . | . . Projectile . | . . AOE . | . . Terrain Rammed . | . . Walls Destroyed . | . . Machines Disabled . | . . Actions | -11 -10 --------- Run | Yrd Mat Total 499 | 46 453 Wait . | . . Move 436 | 39 397 Hop . | . . Pick Up 16 | 5 11 Fast Attach 4 | 2 2 Attach 10 | . 10 Detach . | . . Swap 1 | . 1 Drop . | . . Fire 31 | . 31 Melee . | . . Ram . | . . Kick . | . . Crush 1 | . 1 Escape Stasis . | . . Rewire . | . . Trap . | . . Miscellaneous . | . . Route ------- -11/Scrapyard -10/Materials (discovered 2 exits: [*Mat] / [*Min]) History --------- Turn | Location | Event 7 | -11/Scrapyard | Discovered new exit (range 15) 38 | -11/Scrapyard | Entered Materials 307 | -10/Materials | Build established: Mutant 344 | -10/Materials | Discovered new exit (range 8) 567 | -10/Materials | Discovered new exit (range 7) 678 | -10/Materials | Core integrity fell below 50% 693 | -10/Materials | Core integrity fell below 20% 712 | -10/Materials | Destroyed by S-10 Pest with Light Assault Rifle Last Messages --------------- Acquired 4 matter. K-01 Serf collects debris. Acquired Terrain Scan Processor. Acquired 4 matter. Acquired Lgt. Assault Rifle. K-01 Serf collects debris. U-05 Engineer builds a Wall. Open spaces previously occupied by now-destroyed walls and earth have a slight glow to them. Consecutive moves through these unstable areas may cause a cave-in, but only if doing so for extended periods. Tunneling a short distance between rooms is safe unless the area was destabilized by an explosion. K-01 Serf collects debris. U-05 Engineer builds a Wall. K-01 Serf collects debris. Acquired Signal Interpreter. Flight Unit destroyed. K-01 Serf collects debris. Map ----- +----------------------------------------------------+ | ???##### """ #% %# "" ####### = [! ]# ## | | ???????# """ + + #????## %*%! ## ### | | ???????# """ #% # ! #????## % ! ### #### | | ???????# # ########????#####+####### # | | ???????######## ##?????????#### + "" | | ???????# ! # ############## # "T | | ???????# # # | | ???????# """ + T ### ####### | | ???????# """ # ### ####### "" | | ???????# """ # ############## ### ####### "" | | ???????# #######???########## ###+####### "" | | ???????# """ #?????????########## # #### | | ???????# """ #?????????# = # # [ =#### "" | | ???????# """ #?????????# # # """ #### "" | | ???????# #?????????# """ # + """ #### "" | | ???????# #?????????# """"" + # """ #### | | ???????# #?????????# """"" # # ####### | | ???????#######?????????# """"" ### ############## | | ???????????????????????# """ ### #########????? | | ???????????????????????# ### ##???????????? | | ???????????????????????# ### ##???????????? | | ????????????????################### ##???????????? | | ????????????????# ### # #####????????? | | ????????????????# !! ;;;;;#+#;###????????? | | ????????????????# ! ; %##????????? | | ????????????????# @ ; ! ##????????? | | ????????????????# k ; *!! ##????????? | | ????????????????#######+####;; s = ! ##????????? | | ?????????????????????# #?# ; ##????????? | | ?????????????????????# #?# " k ########### | | ???????????????????? + #?##" = ## | | ???????????????? # ####" ## | | ????????????????#+#### #######+";;#+### | | ????????????% # """" | | ???????????? + """" "" | | ??????????????""" # """" T" | | ???????????????"" ### ######" ####### # "" | | ???????????????""?? ### ######"T####### # | | ?????????????????????##+????######????# ########## | | ???????????????????????????? ########## #????????? | | ?????????????????????????????# """ ## #????????? | | ?????????????????????????????# """"" ## #????????? | | ?????????????????????????????# """"" ## #######??? | | ?????????????????????????????# """"" # #??? | | ?????????????????????????????# """ # #??? | | ?????????????????????????????# + #??? | | ?????????????????????????????# # """" #### | | ?????????????????????????????# # """" ## | | ?????????????????????????????# ! !# """" | | ?????????????????????????????# # | +----------------------------------------------------+ Best States ------------- Heat Dissipation 25 Energy Generation 14 Energy Capacity 250 Matter Stores 300 Matter Capacity 300 Sight Range 16 Terrain Scan Density 10 Evasion (%) 62 Recoil Reduction 2 Item Schematics ----------------- None Robot Schematics ------------------ None Fabricated ------------ Nothing Repaired ---------- Nothing Alien Tech Used ----------------- None Achievements -------------- None Challenges ------------ None Game ------ Seed EnergyGyrokineticTerminator Manual? 0 Play Time 00:09:09 Cumulative 5.0 hours Start 2025.06.27 @ 15:39:12 End 2025.06.27 @ 15:45:46 Sessions 1 Manual Loads 0 Difficulty Rogue Special Mode None Game No. 11 Rogue 11 Adventurer 0 Explorer 0 Win Type - Total 0 Types 0/0/0/0/0/0/0/0/0/0 Lore% 0 Gallery% 11 Achievement% 8 Wizard Run 0 Options --------- Layout 1 ASCII 0 Keyboard 0 Movement Mouse Keybinds 0 Fullscreen 1 Font 20/SmallcapsGlow Map View 50x35 Zoom Use 0% Tactical HUD 0 Map Filters NONE Filters NONE Steam 1 RUN: 6bed6678-7c6e-42a3-9702-ee0790ce9bcb